[Event "Early-Titled-Tuesday-Blitz-October-24-2023"]
[Site "Chess.com"]
[Date "2023.10.24"]
[Round "7"]
[White "Drags95"]
[Black "JiaHaoxiang"]
[Result "1-0"]
[WhiteElo "2838"]
[BlackElo "2613"]
[TimeControl "180+1"]
[EndTime "9:16:45 PDT"]
[Termination "Drags95 won by checkmate"]

1. d4 {[%clk 0:02:32.1]} 1... d5 {[%clk 0:02:58.9]} 2. c4 {[%clk 0:02:32.4]}
2... c6 {[%clk 0:02:59.1]} 3. Nc3 {[%clk 0:02:32.8]} 3... Nf6 {[%clk 0:02:59.1]}
4. Nf3 {[%clk 0:02:33.3]} 4... dxc4 {[%clk 0:02:59.4]} 5. a4 {[%clk 0:02:31.9]}
5... Bf5 {[%clk 0:02:59.7]} 6. e3 {[%clk 0:02:32.2]} 6... e6 {[%clk 0:02:59.9]}
7. Bxc4 {[%clk 0:02:32.7]} 7... Bb4 {[%clk 0:03:00.3]} 8. O-O {[%clk 0:02:33.3]}
8... O-O {[%clk 0:03:00.4]} 9. Qe2 {[%clk 0:02:33.4]} 9... Nbd7 {[%clk
0:03:00.4]} 10. e4 {[%clk 0:02:28.4]} 10... Bg6 {[%clk 0:03:00.4]} 11. Bd3
{[%clk 0:02:28.3]} 11... Bh5 {[%clk 0:03:00.1]} 12. Bg5 {[%clk 0:02:21.5]} 12...
e5 {[%clk 0:02:50.8]} 13. d5 {[%clk 0:02:07.4]} 13... h6 {[%clk 0:02:35.8]} 14.
Bh4 {[%clk 0:02:01.1]} 14... g5 {[%clk 0:02:31.2]} 15. Bg3 {[%clk 0:01:59.6]}
15... Qe7 {[%clk 0:02:31.6]} 16. dxc6 {[%clk 0:01:54.6]} 16... bxc6 {[%clk
0:02:31.4]} 17. Na2 {[%clk 0:01:48.2]} 17... Bc5 {[%clk 0:02:22]} 18. Rac1
{[%clk 0:01:45]} 18... Rab8 {[%clk 0:02:15.8]} 19. b4 {[%clk 0:01:39.7]} 19...
Bxb4 {[%clk 0:02:10.3]} 20. Rxc6 {[%clk 0:01:40.3]} 20... Rfc8 {[%clk
0:01:49.1]} 21. Rxc8+ {[%clk 0:01:09.1]} 21... Rxc8 {[%clk 0:01:48]} 22. Nxb4
{[%clk 0:00:56.5]} 22... Qxb4 {[%clk 0:01:48.9]} 23. Qd2 {[%clk 0:00:57.1]}
23... Qd6 {[%clk 0:01:26.8]} 24. Bb5 {[%clk 0:00:50.3]} 24... Qxd2 {[%clk
0:01:16.9]} 25. Nxd2 {[%clk 0:00:51.2]} 25... Rc2 {[%clk 0:01:16.7]} 26. Nf3
{[%clk 0:00:42.9]} 26... Bxf3 {[%clk 0:01:10]} 27. gxf3 {[%clk 0:00:43.8]} 27...
Kf8 {[%clk 0:01:08]} 28. Rb1 {[%clk 0:00:32.8]} 28... Ke7 {[%clk 0:01:06.1]} 29.
Bxd7 {[%clk 0:00:32.9]} 29... Nxd7 {[%clk 0:01:06.1]} 30. Rb7 {[%clk 0:00:33.5]}
30... f6 {[%clk 0:01:05.4]} 31. Rxa7 {[%clk 0:00:33]} 31... Ra2 {[%clk
0:01:05.2]} 32. h4 {[%clk 0:00:31.1]} 32... Ke6 {[%clk 0:00:57.2]} 33. h5 {[%clk
0:00:31.5]} 33... Nc5 {[%clk 0:00:26.5]} 34. a5 {[%clk 0:00:31.8]} 34... Nb3
{[%clk 0:00:19.9]} 35. Rh7 {[%clk 0:00:31.5]} 35... Rxa5 {[%clk 0:00:19.7]} 36.
Rxh6 {[%clk 0:00:31.8]} 36... Nd4 {[%clk 0:00:20]} 37. Kg2 {[%clk 0:00:31.4]}
37... Ra8 {[%clk 0:00:20.5]} 38. Rh7 {[%clk 0:00:30.5]} 38... Nc6 {[%clk
0:00:20.6]} 39. Rb7 {[%clk 0:00:29.6]} 39... Rh8 {[%clk 0:00:20]} 40. Rb6 {[%clk
0:00:26.3]} 40... Kd7 {[%clk 0:00:19.6]} 41. Kh3 {[%clk 0:00:23.7]} 41... Rxh5+
{[%clk 0:00:19.7]} 42. Kg4 {[%clk 0:00:24.4]} 42... Rh6 {[%clk 0:00:20.4]} 43.
Ra6 {[%clk 0:00:21]} 43... Rg6 {[%clk 0:00:18.7]} 44. Ra8 {[%clk 0:00:16.9]}
44... Ke7 {[%clk 0:00:17.1]} 45. Ra6 {[%clk 0:00:15.5]} 45... Kd7 {[%clk
0:00:13.1]} 46. Ra8 {[%clk 0:00:15.6]} 46... Rh6 {[%clk 0:00:11.9]} 47. Rf8
{[%clk 0:00:11.4]} 47... Nd4 {[%clk 0:00:08.9]} 48. Ra8 {[%clk 0:00:09.2]} 48...
Ke7 {[%clk 0:00:06.7]} 49. Ra7+ {[%clk 0:00:09.4]} 49... Ke6 {[%clk 0:00:06.6]}
50. Ra6+ {[%clk 0:00:09.6]} 50... Kf7 {[%clk 0:00:07.1]} 51. Ra7+ {[%clk
0:00:08.3]} 51... Kg6 {[%clk 0:00:07]} 52. Ra6 {[%clk 0:00:07.2]} 52... Kg7
{[%clk 0:00:06.9]} 53. Ra7+ {[%clk 0:00:06.9]} 53... Kg6 {[%clk 0:00:07.1]} 54.
Ra6 {[%clk 0:00:07.6]} 54... Rh7 {[%clk 0:00:05.5]} 55. Bxe5 {[%clk 0:00:05.9]}
55... Rh4+ {[%clk 0:00:04.4]} 56. Kg3 {[%clk 0:00:06.5]} 56... Ne2+ {[%clk
0:00:04.8]} 57. Kg2 {[%clk 0:00:06.2]} 57... Nf4+ {[%clk 0:00:04.8]} 58. Kg1
{[%clk 0:00:05.1]} 58... Nh5 {[%clk 0:00:04]} 59. Bxf6 {[%clk 0:00:04.5]} 59...
Nxf6 {[%clk 0:00:04.1]} 60. e5 {[%clk 0:00:05]} 60... Rf4 {[%clk 0:00:03.3]} 61.
Kg2 {[%clk 0:00:05.6]} 61... Rf5 {[%clk 0:00:02.8]} 62. Rxf6+ {[%clk 0:00:04]}
62... Rxf6 {[%clk 0:00:03.7]} 63. exf6 {[%clk 0:00:04.8]} 63... Kxf6 {[%clk
0:00:04.2]} 64. Kh3 {[%clk 0:00:05.4]} 64... Kf5 {[%clk 0:00:02]} 65. Kg3 {[%clk
0:00:06]} 65... Ke5 {[%clk 0:00:02.6]} 66. Kg4 {[%clk 0:00:06.9]} 66... Ke6
{[%clk 0:00:02.3]} 67. Kxg5 {[%clk 0:00:06.9]} 67... Ke5 {[%clk 0:00:02.9]} 68.
f4+ {[%clk 0:00:07.1]} 68... Ke4 {[%clk 0:00:03.6]} 69. f5 {[%clk 0:00:07.3]}
69... Ke5 {[%clk 0:00:04.3]} 70. f6 {[%clk 0:00:08.2]} 70... Ke6 {[%clk
0:00:04.9]} 71. Kg6 {[%clk 0:00:09.1]} 71... Kd6 {[%clk 0:00:05.5]} 72. f7
{[%clk 0:00:10]} 72... Ke6 {[%clk 0:00:06.4]} 73. Kg7 {[%clk 0:00:10.9]} 73...
Kf5 {[%clk 0:00:07.3]} 74. f8=Q+ {[%clk 0:00:11.3]} 74... Kg4 {[%clk 0:00:08.2]}
75. f4 {[%clk 0:00:11.1]} 75... Kh4 {[%clk 0:00:09.1]} 76. f5 {[%clk 0:00:11.7]}
76... Kg5 {[%clk 0:00:09.9]} 77. f6 {[%clk 0:00:12.6]} 77... Kh5 {[%clk
0:00:10.8]} 78. f7 {[%clk 0:00:13.2]} 78... Kg4 {[%clk 0:00:11.7]} 79. Qe7
{[%clk 0:00:13.1]} 79... Kf5 {[%clk 0:00:12]} 80. f8=Q+ {[%clk 0:00:13]} 80...
Kg4 {[%clk 0:00:12.9]} 81. Qe4+ {[%clk 0:00:12.9]} 81... Kh5 {[%clk 0:00:13.8]}
82. Qff5# {[%clk 0:00:12.6]} 1-0

[Event "Early-Titled-Tuesday-Blitz-October-24-2023"]
[Site "Chess.com"]
[Date "2023.10.24"]
[Round "7"]
[White "RandomNoob04"]
[Black "IlyaGrigorjev"]
[Result "0-1"]
[WhiteElo "2626"]
[BlackElo "2919"]
[TimeControl "180+1"]
[EndTime "9:16:50 PDT"]
[Termination "IlyaGrigorjev won on time"]

1. e4 {[%clk 0:03:00.9]} 1... e5 {[%clk 0:02:59.9]} 2. d4 {[%clk 0:03:00.9]}
2... exd4 {[%clk 0:02:59.6]} 3. Qxd4 {[%clk 0:03:01.8]} 3... Nc6 {[%clk
0:03:00.1]} 4. Qe3 {[%clk 0:03:02.4]} 4... Nf6 {[%clk 0:03:00.8]} 5. e5 {[%clk
0:03:02.6]} 5... Ng4 {[%clk 0:02:27.1]} 6. Qe4 {[%clk 0:03:02.7]} 6... d5 {[%clk
0:02:23.7]} 7. exd6+ {[%clk 0:03:03.6]} 7... Be6 {[%clk 0:02:24.2]} 8. Ba6
{[%clk 0:03:04.1]} 8... Qc8 {[%clk 0:01:42.9]} 9. Qxc6+ {[%clk 0:02:57.9]} 9...
bxc6 {[%clk 0:01:43.8]} 10. Bxc8 {[%clk 0:02:58.7]} 10... Rxc8 {[%clk
0:01:44.7]} 11. h3 {[%clk 0:02:56.6]} 11... Nf6 {[%clk 0:01:40.2]} 12. dxc7
{[%clk 0:02:56.7]} 12... Bc5 {[%clk 0:01:34.2]} 13. Nd2 {[%clk 0:02:37.4]} 13...
O-O {[%clk 0:01:32.9]} 14. Ngf3 {[%clk 0:02:31.8]} 14... Rxc7 {[%clk 0:01:28.9]}
15. O-O {[%clk 0:02:31.7]} 15... h6 {[%clk 0:01:26.3]} 16. Nb3 {[%clk
0:02:31.4]} 16... Bb6 {[%clk 0:01:24.9]} 17. Bf4 {[%clk 0:02:29.9]} 17... Rcc8
{[%clk 0:01:20.3]} 18. Rad1 {[%clk 0:02:27.1]} 18... Bd5 {[%clk 0:01:17]} 19.
Ne5 {[%clk 0:02:23.5]} 19... g5 {[%clk 0:01:08.5]} 20. Bh2 {[%clk 0:02:22.4]}
20... Ne4 {[%clk 0:00:58.3]} 21. Nd7 {[%clk 0:02:15.9]} 21... Rfe8 {[%clk
0:00:57.4]} 22. Nxb6 {[%clk 0:02:15.3]} 22... axb6 {[%clk 0:00:58.3]} 23. Nd4
{[%clk 0:02:10.7]} 23... Kh7 {[%clk 0:00:39.1]} 24. Nf5 {[%clk 0:02:06.5]} 24...
Kg6 {[%clk 0:00:37.4]} 25. Ne3 {[%clk 0:02:00]} 25... Be6 {[%clk 0:00:35.8]} 26.
Rfe1 {[%clk 0:01:57.2]} 26... Red8 {[%clk 0:00:29.7]} 27. Rxd8 {[%clk
0:01:52.3]} 27... Rxd8 {[%clk 0:00:30.5]} 28. Bc7 {[%clk 0:01:52.5]} 28... Rd2
{[%clk 0:00:24.3]} 29. Bxb6 {[%clk 0:01:52.5]} 29... f5 {[%clk 0:00:15.4]} 30.
Rd1 {[%clk 0:01:40.3]} 30... Rxf2 {[%clk 0:00:12.2]} 31. Rd8 {[%clk 0:01:10.4]}
31... Re2 {[%clk 0:00:07.9]} 32. Bd4 {[%clk 0:00:51.9]} 32... f4 {[%clk
0:00:08.1]} 33. Ng4 {[%clk 0:00:43.3]} 33... Ng3 {[%clk 0:00:07.4]} 34. Ne5+
{[%clk 0:00:37.1]} 34... Kf5 {[%clk 0:00:07.5]} 35. Nf3 {[%clk 0:00:29.6]} 35...
Rxc2 {[%clk 0:00:06.3]} 36. Bc3 {[%clk 0:00:18.9]} 36... Rc1+ {[%clk 0:00:06.1]}
37. Be1 {[%clk 0:00:19.4]} 37... Bd5 {[%clk 0:00:05.1]} 38. Kf2 {[%clk
0:00:16.3]} 38... Ne4+ {[%clk 0:00:04.1]} 39. Ke2 {[%clk 0:00:16.7]} 39... Rc2+
{[%clk 0:00:04.6]} 40. Kd3 {[%clk 0:00:16.9]} 40... Rxb2 {[%clk 0:00:05.5]} 41.
Nd4+ {[%clk 0:00:16.6]} 41... Kg6 {[%clk 0:00:05.4]} 42. Bc3 {[%clk 0:00:07.4]}
42... Nxc3 {[%clk 0:00:04.1]} 43. Kxc3 {[%clk 0:00:08.3]} 43... Rxa2 {[%clk
0:00:04.6]} 44. Rd6+ {[%clk 0:00:08.9]} 44... Kf7 {[%clk 0:00:03.1]} 45. Nf5
{[%clk 0:00:04.1]} 45... Rxg2 {[%clk 0:00:03.6]} 46. Nxh6+ {[%clk 0:00:04.4]}
46... Ke8 {[%clk 0:00:03.4]} 47. Nf5 {[%clk 0:00:05.3]} 47... f3 {[%clk
0:00:03.4]} 48. Ne3 {[%clk 0:00:05]} 48... Rh2 {[%clk 0:00:03.5]} 49. Rf6 {[%clk
0:00:03.9]} 49... Ke7 {[%clk 0:00:02.9]} 50. Nxd5+ {[%clk 0:00:02.5]} 50... cxd5
{[%clk 0:00:03.8]} 51. Rxf3 {[%clk 0:00:03.4]} 51... Ke6 {[%clk 0:00:04.6]} 52.
Kd4 {[%clk 0:00:03.8]} 52... Re2 {[%clk 0:00:04.3]} 53. Rg3 {[%clk 0:00:03.4]}
53... Re4+ {[%clk 0:00:04.9]} 54. Kd3 {[%clk 0:00:03.4]} 54... Kf5 {[%clk
0:00:05.2]} 55. Rf3+ {[%clk 0:00:03.4]} 55... Rf4 {[%clk 0:00:05.9]} 56. Re3
{[%clk 0:00:03.5]} 56... Ra4 {[%clk 0:00:05.5]} 57. Re2 {[%clk 0:00:03]} 57...
Ra3+ {[%clk 0:00:04.5]} 58. Kd4 {[%clk 0:00:03.9]} 58... Rxh3 {[%clk 0:00:05]}
59. Kxd5 {[%clk 0:00:03.9]} 59... Rd3+ {[%clk 0:00:05.6]} 60. Kc4 {[%clk
0:00:03.9]} 60... Rd1 {[%clk 0:00:05.7]} 61. Re8 {[%clk 0:00:02.4]} 61... Kf4
{[%clk 0:00:05]} 62. Rf8+ {[%clk 0:00:02.8]} 62... Kg3 {[%clk 0:00:05.6]} 63.
Kc3 {[%clk 0:00:03.3]} 63... g4 {[%clk 0:00:06.1]} 64. Kc2 {[%clk 0:00:04.2]}
64... Rd7 {[%clk 0:00:06.8]} 65. Rg8 {[%clk 0:00:03.4]} 65... Kf3 {[%clk
0:00:07.3]} 66. Rf8+ {[%clk 0:00:03.6]} 66... Kg2 {[%clk 0:00:07.8]} 67. Rg8
{[%clk 0:00:04.4]} 67... g3 {[%clk 0:00:08.3]} 68. Rg7 {[%clk 0:00:04.6]} 68...
Rxg7 {[%clk 0:00:07.9]} 0-1

[Event "Early-Titled-Tuesday-Blitz-October-24-2023"]
[Site "Chess.com"]
[Date "2023.10.24"]
[Round "7"]
[White "Gyulamiryan-koryun"]
[Black "Akylbek2021"]
[Result "0-1"]
[WhiteElo "1952"]
[BlackElo "2257"]
[TimeControl "180+1"]
[EndTime "9:16:53 PDT"]
[Termination "Akylbek2021 won on time"]

1. e4 {[%clk 0:02:58.1]} 1... e6 {[%clk 0:01:20.9]} 2. d4 {[%clk 0:02:55]} 2...
d5 {[%clk 0:01:21.4]} 3. Nd2 {[%clk 0:02:54.6]} 3... c5 {[%clk 0:01:20.4]} 4.
exd5 {[%clk 0:02:53.9]} 4... Qxd5 {[%clk 0:01:21.3]} 5. Bb5+ {[%clk 0:02:48.8]}
5... Nc6 {[%clk 0:01:18.6]} 6. Bxc6+ {[%clk 0:02:48.3]} 6... Qxc6 {[%clk
0:01:18.8]} 7. Qf3 {[%clk 0:02:44.9]} 7... Bd7 {[%clk 0:01:12.5]} 8. dxc5 {[%clk
0:02:42.2]} 8... Bxc5 {[%clk 0:01:10.6]} 9. Ne2 {[%clk 0:02:41.1]} 9... Qxf3
{[%clk 0:01:07.4]} 10. Nxf3 {[%clk 0:02:40.5]} 10... Nf6 {[%clk 0:01:08]} 11.
O-O {[%clk 0:02:35.2]} 11... O-O {[%clk 0:01:06.4]} 12. Ne5 {[%clk 0:02:28.4]}
12... Bc8 {[%clk 0:00:51.3]} 13. c3 {[%clk 0:02:26.6]} 13... a5 {[%clk
0:00:49.4]} 14. Be3 {[%clk 0:02:23.4]} 14... Bxe3 {[%clk 0:00:48.2]} 15. fxe3
{[%clk 0:02:23.2]} 15... b6 {[%clk 0:00:46.9]} 16. Nd4 {[%clk 0:02:22]} 16...
Ba6 {[%clk 0:00:45.6]} 17. Rfd1 {[%clk 0:02:13.7]} 17... Nd5 {[%clk 0:00:42]}
18. Kf2 {[%clk 0:02:12.3]} 18... Rfd8 {[%clk 0:00:38.3]} 19. Nec6 {[%clk
0:02:06.2]} 19... Rd6 {[%clk 0:00:34.9]} 20. e4 {[%clk 0:01:59.6]} 20... Nf4
{[%clk 0:00:26.2]} 21. e5 {[%clk 0:01:54.6]} 21... Rd7 {[%clk 0:00:23.2]} 22.
Rd2 {[%clk 0:01:44.2]} 22... Nd3+ {[%clk 0:00:16.7]} 23. Ke3 {[%clk 0:01:42.6]}
23... Nc5 {[%clk 0:00:16.1]} 24. b4 {[%clk 0:01:38.8]} 24... Na4 {[%clk
0:00:12.7]} 25. b5 {[%clk 0:01:35.3]} 25... Bb7 {[%clk 0:00:10.4]} 26. Rc2
{[%clk 0:01:24.3]} 26... Rc8 {[%clk 0:00:09.1]} 27. Rac1 {[%clk 0:01:17.1]}
27... Rd5 {[%clk 0:00:08.2]} 28. Ke4 {[%clk 0:01:14.6]} 28... Kf8 {[%clk
0:00:06.6]} 29. c4 {[%clk 0:01:12.5]} 29... Rd7 {[%clk 0:00:06]} 30. Ke3 {[%clk
0:01:02]} 30... h5 {[%clk 0:00:06]} 31. Na7 {[%clk 0:00:56.8]} 31... Rcd8 {[%clk
0:00:05.3]} 32. Nac6 {[%clk 0:00:53.9]} 32... Bxc6 {[%clk 0:00:05.7]} 33. Nxc6
{[%clk 0:00:51.9]} 33... Rd3+ {[%clk 0:00:06.3]} 34. Ke2 {[%clk 0:00:51.3]}
34... R8d7 {[%clk 0:00:04.3]} 35. Nb8 {[%clk 0:00:49.1]} 35... R7d4 {[%clk
0:00:03.8]} 36. Nc6 {[%clk 0:00:39.2]} 36... Rd7 {[%clk 0:00:03.9]} 37. Nb8
{[%clk 0:00:34.3]} 37... Rd8 {[%clk 0:00:04]} 38. Na6 {[%clk 0:00:33.8]} 38...
R3d4 {[%clk 0:00:02.6]} 39. c5 {[%clk 0:00:33.2]} 39... bxc5 {[%clk 0:00:01.9]}
40. Nxc5 {[%clk 0:00:32.7]} 40... Nxc5 {[%clk 0:00:02.3]} 41. Rxc5 {[%clk
0:00:32.7]} 41... Rd2+ {[%clk 0:00:03]} 42. Ke3 {[%clk 0:00:31.3]} 42... Rxg2
{[%clk 0:00:03]} 43. b6 {[%clk 0:00:30.5]} 43... Rxa2 {[%clk 0:00:02]} 44. Rb5
{[%clk 0:00:29.9]} 44... Rxh2 {[%clk 0:00:01.3]} 45. b7 {[%clk 0:00:29.9]} 45...
Rh3+ {[%clk 0:00:01.7]} 46. Ke2 {[%clk 0:00:27.8]} 46... Rh2+ {[%clk 0:00:01.7]}
47. Ke3 {[%clk 0:00:23.4]} 47... Rh3+ {[%clk 0:00:01.6]} 48. Kf2 {[%clk
0:00:23.4]} 48... Kg8 {[%clk 0:00:01.4]} 49. b8=Q {[%clk 0:00:22.6]} 49... Rxb8
{[%clk 0:00:02.1]} 50. Rxb8+ {[%clk 0:00:21.5]} 50... Kh7 {[%clk 0:00:03]} 51.
Rg1 {[%clk 0:00:17.7]} 51... g6 {[%clk 0:00:02.3]} 52. Ra8 {[%clk 0:00:16.5]}
52... Rh2+ {[%clk 0:00:02.7]} 53. Kf3 {[%clk 0:00:15.9]} 53... Ra2 {[%clk
0:00:03.1]} 54. Rb1 {[%clk 0:00:15.1]} 54... Ra3+ {[%clk 0:00:02.3]} 55. Kf4
{[%clk 0:00:13.6]} 55... Ra4+ {[%clk 0:00:02.7]} 56. Kg3 {[%clk 0:00:13]} 56...
Re4 {[%clk 0:00:02.1]} 57. Rxa5 {[%clk 0:00:11.2]} 57... g5 {[%clk 0:00:02.3]}
58. Rf1 {[%clk 0:00:08.8]} 58... Kg7 {[%clk 0:00:01.7]} 59. Ra7 {[%clk
0:00:07.5]} 59... Re3+ {[%clk 0:00:02.2]} 60. Kg2 {[%clk 0:00:06.4]} 60... Rxe5
{[%clk 0:00:02]} 61. Raxf7+ {[%clk 0:00:05.3]} 61... Kg8 {[%clk 0:00:02.7]} 62.
Rf8+ {[%clk 0:00:05.3]} 62... Kg7 {[%clk 0:00:03.1]} 63. R1f7+ {[%clk
0:00:05.3]} 63... Kg6 {[%clk 0:00:03.8]} 64. Rf6+ {[%clk 0:00:04.3]} 64... Kg7
{[%clk 0:00:04]} 65. Rf1 {[%clk 0:00:03.3]} 65... h4 {[%clk 0:00:03.8]} 66. Rc8
{[%clk 0:00:02.2]} 66... Kg6 {[%clk 0:00:04.3]} 67. Rc6 {[%clk 0:00:01.5]} 67...
Re2+ {[%clk 0:00:04.2]} 0-1

[Event "Early-Titled-Tuesday-Blitz-October-24-2023"]
[Site "Chess.com"]
[Date "2023.10.24"]
[Round "7"]
[White "m_ezat"]
[Black "oggy1984"]
[Result "1-0"]
[WhiteElo "2598"]
[BlackElo "2440"]
[TimeControl "180+1"]
[EndTime "9:16:57 PDT"]
[Termination "m_ezat won by checkmate"]

1. d4 {[%clk 0:03:00.9]} 1... d5 {[%clk 0:02:59.6]} 2. c4 {[%clk 0:02:38]} 2...
c6 {[%clk 0:02:59.4]} 3. Nc3 {[%clk 0:02:29.7]} 3... Nf6 {[%clk 0:02:57.3]} 4.
cxd5 {[%clk 0:02:28.9]} 4... cxd5 {[%clk 0:02:56.5]} 5. Bf4 {[%clk 0:02:29.5]}
5... Nc6 {[%clk 0:02:51.6]} 6. e3 {[%clk 0:02:29.5]} 6... a6 {[%clk 0:02:49.6]}
7. Bd3 {[%clk 0:02:21.6]} 7... Bg4 {[%clk 0:02:47.7]} 8. Nge2 {[%clk 0:02:17.1]}
8... Bxe2 {[%clk 0:02:40.3]} 9. Qxe2 {[%clk 0:02:16.2]} 9... e6 {[%clk
0:02:40.6]} 10. O-O {[%clk 0:02:14.5]} 10... Bd6 {[%clk 0:02:40.2]} 11. Bg3
{[%clk 0:02:11]} 11... Bxg3 {[%clk 0:02:36.2]} 12. hxg3 {[%clk 0:01:52.3]} 12...
Qd6 {[%clk 0:02:30.2]} 13. Rac1 {[%clk 0:01:50.6]} 13... O-O {[%clk 0:02:22]}
14. a3 {[%clk 0:01:29.4]} 14... b5 {[%clk 0:02:20.5]} 15. Rc2 {[%clk 0:01:25.7]}
15... Rac8 {[%clk 0:02:17.3]} 16. Rfc1 {[%clk 0:01:18.9]} 16... Ne7 {[%clk
0:02:08.9]} 17. Na2 {[%clk 0:00:45.7]} 17... g6 {[%clk 0:01:57.4]} 18. Qd2
{[%clk 0:00:42.4]} 18... Rxc2 {[%clk 0:01:54.2]} 19. Rxc2 {[%clk 0:00:41.7]}
19... Rc8 {[%clk 0:01:54.7]} 20. Qc1 {[%clk 0:00:38.6]} 20... Rxc2 {[%clk
0:01:53.1]} 21. Qxc2 {[%clk 0:00:38.8]} 21... Qc6 {[%clk 0:01:49.3]} 22. Qxc6
{[%clk 0:00:34.1]} 22... Nxc6 {[%clk 0:01:50.2]} 23. a4 {[%clk 0:00:33.6]} 23...
Na7 {[%clk 0:01:22.8]} 24. axb5 {[%clk 0:00:22.2]} 24... axb5 {[%clk 0:01:23.7]}
25. Nc3 {[%clk 0:00:22.2]} 25... b4 {[%clk 0:01:21]} 26. Na2 {[%clk 0:00:22.3]}
26... Nc6 {[%clk 0:01:20.1]} 27. Bb5 {[%clk 0:00:22.3]} 27... b3 {[%clk
0:01:20.3]} 28. Nc1 {[%clk 0:00:21.7]} 28... Na5 {[%clk 0:01:20.1]} 29. Ba4
{[%clk 0:00:20.5]} 29... Nc4 {[%clk 0:01:19.9]} 30. Nd3 {[%clk 0:00:20.6]} 30...
Nd2 {[%clk 0:01:15]} 31. f3 {[%clk 0:00:18.5]} 31... Nh5 {[%clk 0:01:12.8]} 32.
Kf2 {[%clk 0:00:18.6]} 32... Kg7 {[%clk 0:01:10.7]} 33. g4 {[%clk 0:00:18.8]}
33... Nf6 {[%clk 0:01:08.9]} 34. Ke2 {[%clk 0:00:19.2]} 34... Nc4 {[%clk
0:01:08.9]} 35. Bxb3 {[%clk 0:00:19.7]} 35... Nb6 {[%clk 0:01:07.6]} 36. Ba2
{[%clk 0:00:19.3]} 36... h5 {[%clk 0:01:05.7]} 37. g5 {[%clk 0:00:17.4]} 37...
Ne8 {[%clk 0:01:04.8]} 38. Kd2 {[%clk 0:00:16.9]} 38... Nd6 {[%clk 0:01:04.8]}
39. b3 {[%clk 0:00:17.1]} 39... Nb5 {[%clk 0:01:04.3]} 40. Bb1 {[%clk
0:00:16.9]} 40... Na3 {[%clk 0:01:04.1]} 41. Bc2 {[%clk 0:00:17.1]} 41... Kf8
{[%clk 0:01:02.2]} 42. Nc5 {[%clk 0:00:17.3]} 42... Nb5 {[%clk 0:00:58.5]} 43.
Bd3 {[%clk 0:00:17.5]} 43... Nd6 {[%clk 0:00:54.9]} 44. Kc3 {[%clk 0:00:17.5]}
44... Ke7 {[%clk 0:00:52.8]} 45. Kb4 {[%clk 0:00:17.7]} 45... Kd8 {[%clk
0:00:53.4]} 46. Ka5 {[%clk 0:00:17.8]} 46... Kc7 {[%clk 0:00:54]} 47. Na6+
{[%clk 0:00:17.9]} 47... Kc6 {[%clk 0:00:53.6]} 48. Nc5 {[%clk 0:00:18.8]} 48...
Kc7 {[%clk 0:00:53.5]} 49. Ka6 {[%clk 0:00:17.3]} 49... Ndc8 {[%clk 0:00:46.9]}
50. Bxg6 {[%clk 0:00:15.8]} 50... fxg6 {[%clk 0:00:45.9]} 51. Nxe6+ {[%clk
0:00:16.2]} 51... Kc6 {[%clk 0:00:41.5]} 52. Nf4 {[%clk 0:00:17.1]} 52... Ne7
{[%clk 0:00:41.1]} 53. Ka5 {[%clk 0:00:17.3]} 53... Nbc8 {[%clk 0:00:37.6]} 54.
b4 {[%clk 0:00:16.4]} 54... Nd6 {[%clk 0:00:37.8]} 55. Ne6 {[%clk 0:00:15.7]}
55... Nc4+ {[%clk 0:00:37.7]} 56. Ka6 {[%clk 0:00:15]} 56... Na3 {[%clk
0:00:28.8]} 57. Nd8+ {[%clk 0:00:14.1]} 57... Kd7 {[%clk 0:00:28.1]} 58. Nf7
{[%clk 0:00:13.9]} 58... Kc7 {[%clk 0:00:25.4]} 59. Ne5 {[%clk 0:00:13.9]} 59...
Nc4 {[%clk 0:00:24.1]} 60. f4 {[%clk 0:00:06.6]} 60... Nxe3 {[%clk 0:00:23.3]}
61. b5 {[%clk 0:00:06.2]} 61... Nc8 {[%clk 0:00:19.5]} 62. Nxg6 {[%clk
0:00:05.4]} 62... Nxg2 {[%clk 0:00:19.7]} 63. f5 {[%clk 0:00:05.1]} 63... Ne3
{[%clk 0:00:15.5]} 64. f6 {[%clk 0:00:04.7]} 64... Nc2 {[%clk 0:00:09.1]} 65.
Nf4 {[%clk 0:00:05.1]} 65... Nd6 {[%clk 0:00:07.7]} 66. Ka5 {[%clk 0:00:05.2]}
66... h4 {[%clk 0:00:06.7]} 67. g6 {[%clk 0:00:04.5]} 67... Nxd4 {[%clk
0:00:05.3]} 68. g7 {[%clk 0:00:04]} 68... Nc4+ {[%clk 0:00:04.7]} 69. Kb4 {[%clk
0:00:04.3]} 69... Nc2+ {[%clk 0:00:03.9]} 70. Kc3 {[%clk 0:00:04]} 70... N2e3
{[%clk 0:00:04.8]} 71. Kd4 {[%clk 0:00:03.6]} 71... Kb6 {[%clk 0:00:05.7]} 72.
Nxd5+ {[%clk 0:00:03.1]} 72... Kxb5 {[%clk 0:00:04.8]} 73. Nxe3 {[%clk
0:00:02.9]} 73... Nd6 {[%clk 0:00:03.8]} 74. Kd5 {[%clk 0:00:02.8]} 74... Nf7
{[%clk 0:00:03.3]} 75. g8=Q {[%clk 0:00:03]} 75... Ng5 {[%clk 0:00:03.8]} 76.
Qb8+ {[%clk 0:00:03.2]} 76... Ka4 {[%clk 0:00:03.7]} 77. Kc4 {[%clk 0:00:03.5]}
77... Ne4 {[%clk 0:00:02]} 78. Qb4# {[%clk 0:00:03.4]} 1-0

[Event "Early-Titled-Tuesday-Blitz-October-24-2023"]
[Site "Chess.com"]
[Date "2023.10.24"]
[Round "8"]
[White "Payyappat"]
[Black "RandomNoob04"]
[Result "0-1"]
[WhiteElo "2513"]
[BlackElo "2632"]
[TimeControl "180+1"]
[EndTime "9:20:04 PDT"]
[Termination "RandomNoob04 won by resignation"]

1. e4 {[%clk 0:03:00.9]} 1... e5 {[%clk 0:02:44.3]} 2. Nf3 {[%clk 0:03:00.1]}
2... Nf6 {[%clk 0:02:44.1]} 3. Nxe5 {[%clk 0:02:58.2]} 3... Nc6 {[%clk
0:02:43.8]} 4. Nxc6 {[%clk 0:02:57.6]} 4... dxc6 {[%clk 0:02:44.7]} 5. Nc3
{[%clk 0:02:57.2]} 5... Bc5 {[%clk 0:02:45.3]} 6. Bc4 {[%clk 0:02:55]} 6... Ng4
{[%clk 0:02:45.1]} 7. Qf3 {[%clk 0:02:25.9]} 7... Ne5 {[%clk 0:02:44.9]} 8. Qe2
{[%clk 0:02:24.8]} 8... Qh4 {[%clk 0:02:44.4]} 9. g3 {[%clk 0:02:22.6]} 9... Qh3
{[%clk 0:02:44.5]} 10. d3 {[%clk 0:02:17.2]} 10... Bg4 {[%clk 0:02:39.8]} 0-1

[Event "Early-Titled-Tuesday-Blitz-October-24-2023"]
[Site "Chess.com"]
[Date "2023.10.24"]
[Round "8"]
[White "WindWhistler11"]
[Black "PenguiinQueen"]
[Result "0-1"]
[WhiteElo "2434"]
[BlackElo "2296"]
[TimeControl "180+1"]
[EndTime "9:21:00 PDT"]
[Termination "PenguiinQueen won by resignation"]

1. a3 {[%clk 0:03:00.9]} 1... d5 {[%clk 0:02:57.5]} 2. b3 {[%clk 0:03:01.8]}
2... e5 {[%clk 0:02:57]} 3. c3 {[%clk 0:03:02.7]} 3... Nf6 {[%clk 0:02:56.4]} 4.
d3 {[%clk 0:03:03.4]} 4... c5 {[%clk 0:02:53.6]} 5. e3 {[%clk 0:03:04]} 5... Nc6
{[%clk 0:02:53.9]} 6. Be2 {[%clk 0:03:04.7]} 6... Bd6 {[%clk 0:02:53.8]} 7. g4
{[%clk 0:03:05.3]} 7... O-O {[%clk 0:02:51.4]} 8. Bb2 {[%clk 0:03:04.2]} 8... d4
{[%clk 0:02:47.8]} 9. cxd4 {[%clk 0:02:59.2]} 9... exd4 {[%clk 0:02:45.9]} 10.
e4 {[%clk 0:02:59.9]} 10... a5 {[%clk 0:02:33.7]} 11. Nd2 {[%clk 0:02:58.9]}
11... b5 {[%clk 0:02:30.4]} 12. Nf1 {[%clk 0:02:52.3]} 12... a4 {[%clk
0:02:24.3]} 13. Ng3 {[%clk 0:02:45.8]} 13... Be6 {[%clk 0:02:18.9]} 14. bxa4
{[%clk 0:02:41.7]} 14... Rxa4 {[%clk 0:02:17.9]} 15. g5 {[%clk 0:02:40.7]} 15...
Nd7 {[%clk 0:02:14.1]} 16. Nf3 {[%clk 0:02:36.7]} 16... Bh3 {[%clk 0:02:05.8]}
17. Nh4 {[%clk 0:02:21.5]} 17... Qxg5 {[%clk 0:02:02.9]} 18. Nhf5 {[%clk
0:02:21.8]} 18... Bc7 {[%clk 0:01:59.2]} 19. Rg1 {[%clk 0:02:16.4]} 19... Ba5+
{[%clk 0:01:58.8]} 0-1